bitfinex-derivatives/quotes_SOLF0:USTF0_20250716
["timestamp","ask_amount","ask_price","bid_price","bid_amount"]
[1752709453185,3.28,173.78,173.74,3.16]
[1752709453387,5.751,173.78,173.74,3.16]
[1752709453583,3.28,173.77,173.74,3.16]
[1752709453989,3.28,173.76,173.74,3.16]
[1752709454287,3.28,173.76,173.73,3.29567062]
[1752709454288,3.28,173.76,173.73,6.45567062]
[1752709454790,3.28,173.75,173.73,6.45567062]
[1752709455387,5.7515,173.76,173.73,6.45567062]
[1752709455585,3.28,173.74,173.73,6.45567062]
[1752709457489,5.7514,173.76,173.73,6.45567062]
[1752709457689,3.28,173.75,173.74,3.16]
[1752709458688,9.0318,173.75,173.74,3.16]
[1752709459189,3.28,173.75,173.74,3.16]
[1752709460081,9.0318,173.75,173.73,3.29567062]
[1752709460286,3.28,173.74,173.73,6.45567062]
[1752709460492,3.28,173.75,173.74,3.16]
[1752709461593,3.28,173.75,173.74,0.75872429]
[1752709462491,3.28,173.75,173.73,3.29567062]
[1752709462692,3.26,173.74,173.73,3.29567062]
[1752709465594,3.26,173.74,173.73,4.83567062]
[1752709465993,3.26,173.74,173.73,3.29567062]
[1752709467987,3.26,173.74,173.72,4.83567062]
[1752709468892,3.26,173.74,173.72,3.29567062]
[1752709469291,3.26,173.74,173.73,1.54]
[1752709470392,16.12091911,173.74,173.73,1.54]
[1752709471395,18.61331911,173.75,173.72,1.17448193]
[1752709471597,3.26,173.73,173.71,5.7535]
[1752709471795,3.26,173.73,173.72,3.29567062]
[1752709473793,5.7527,173.74,173.72,3.29567062]
[1752709473794,12.86091911,173.76,173.72,3.29567062]
[1752709473995,12.86091911,173.76,173.74,3.14]
[1752709474697,18.61301911,173.76,173.75,3.29567062]
[1752709474895,18.61301911,173.76,173.75,6.43567062]
[1752709475087,12.86091911,173.76,173.75,6.43567062]
[1752709475291,12.91506756,173.78,173.75,3.29567062]
[1752709475493,16.06797431,173.83,173.77,3.29567062]
[1752709475796,79.85415994,173.84,173.79,3.29567062]
[1752709475797,9.0106,173.8,173.79,3.29567062]
[1752709477103,3.26,173.8,173.79,3.29567062]
[1752709478791,3.26,173.8,173.77,3.14]
[1752709478990,5.7506,173.8,173.77,3.14]
[1752709479196,19.32797431,173.84,173.77,3.29567062]
[1752709479498,3.26,173.83,173.77,3.29567062]
[1752709479700,16.06797431,173.84,173.77,3.29567062]
[1752709479898,3.26,173.81,173.77,3.29567062]
[1752709480099,3.26,173.81,173.77,6.43567062]
[1752709480900,5.7509,173.8,173.77,6.43567062]
[1752709481096,3.26,173.79,173.77,6.43567062]
[1752709481297,3.26,173.78,173.77,6.43567062]
[1752709481701,3.26,173.79,173.78,3.14]
[1752709482801,3.26,173.79,173.77,3.29567062]
[1752709483101,3.26,173.79,173.77,6.43567062]
[1752709483295,3.26,173.79,173.77,3.29567062]
[1752709484002,3.26,173.78,173.77,3.29567062]
[1752709485202,3.26,173.78,173.77,6.43567062]
[1752709485503,3.26,173.78,173.77,3.29567062]
[1752709485898,3.26,173.78,173.75,3.29567062]
[1752709486294,3.26,173.76,173.75,3.29567062]
[1752709487101,3.26,173.76,173.75,6.43567062]
[1752709487303,3.26,173.79,173.76,3.14]
[1752709487500,3.26,173.78,173.77,3.29567062]
[1752709487696,3.26,173.77,173.76,3.29567062]
[1752709488308,3.26,173.77,173.76,6.43567062]
[1752709494712,12.90281065,173.82,173.77,3.24]
[1752709494906,3.25,173.81,173.77,3.24]
[1752709495105,3.25,173.81,173.8,5.33543013]
[1752709495305,3.25,173.81,173.8,3.53029114]
[1752709495501,3.25,173.81,173.8,2.09543013]
[1752709496906,3.25,173.81,173.79,5.7507]
[1752709497110,3.25,173.81,173.8,3.27411697]
[1752709499411,3.25,173.81,173.8,10.47471697]
[1752709499615,3.25,173.81,173.8,9.02471697]
[1752709500516,3.25,173.81,173.8,3.27411697]
[1752709500719,3.25,173.81,173.79,1.45]
[1752709500928,3.25,173.81,173.69,1.45]
[1752709501125,3.25,173.79,173.74,3.27411697]
[1752709501318,3.25,173.79,173.72,3.27411697]
[1752709501518,3.25,173.76,173.72,3.27411697]
[1752709502015,3.25,173.76,173.74,3.27411697]
[1752709502623,3.25,173.75,173.74,3.27411697]
[1752709505126,9.0023,173.75,173.74,3.27411697]
[1752709506226,3.25,173.75,173.74,3.27411697]
[1752709507224,41.77673322,174.0,173.74,3.27411697]
[1752709507225,12.90281065,173.79,173.74,3.27411697]
[1752709507433,3.25,173.75,173.74,4.72411697]
[1752709508323,3.25,173.75,173.74,3.27411697]
[1752709510025,12.90281065,173.79,173.73,1.45]
[1752709510222,3.25,173.78,173.74,3.27411697]
[1752709510523,5.7522,173.76,173.74,3.27411697]
[1752709510731,3.25,173.75,173.74,3.27411697]
[1752709512030,3.25,173.75,173.74,4.72411697]
[1752709513027,12.90281065,173.79,173.75,1.45]
[1752709513229,3.25,173.76,173.75,1.45]
[1752709513430,3.25,173.76,173.75,4.72411697]
[1752709518736,3.25,173.76,173.75,3.27411697]
[1752709518938,3.25,173.76,173.73,3.27411697]
[1752709519135,3.25,173.76,173.71,5.7533]
[1752709519336,3.25,173.75,173.73,3.27411697]
[1752709520640,12.90281065,173.79,173.69,116.06653113]
[1752709520942,3.25,173.75,173.74,1.45]
[1752709521140,3.25,173.75,173.74,4.72411697]
[1752709522138,3.25,173.75,173.74,10.47671697]
[1752709522738,3.17,173.77,173.75,5.7522]
[1752709522934,5.7507,173.8,173.75,7.2022]
[1752709522935,3.17,173.76,173.75,7.2022]
[1752709523742,3.17,173.76,173.75,1.45]
[1752709523936,5.751,173.79,173.74,5.7525]
[1752709524137,5.751,173.79,173.77,3.27411697]
[1752709524334,18.65351065,173.8,173.77,3.27411697]
[1752709524637,3.17,173.79,173.77,3.27411697]
[1752709525433,3.17,173.79,173.77,4.72411697]
[1752709525633,3.17,173.78,173.77,4.72411697]
[1752709526743,3.17,173.82,173.78,1.45]
[1752709527041,3.17,173.82,173.8,3.27411697]
[1752709527236,5.7504,173.81,173.8,3.27411697]
[1752709527441,8.9204,173.81,173.8,3.27411697]
[1752709527639,3.17,173.8,173.79,3.27411697]
[1752709529042,3.17,173.8,173.76,7.2018]
[1752709529233,3.17,173.8,173.79,3.27411697]
[1752709530042,3.17,173.8,173.76,3.27411697]
[1752709530345,12.90281065,173.79,173.76,3.27411697]
[1752709530543,3.17,173.77,173.74,3.27411697]
[1752709531141,3.17,173.76,173.74,3.27411697]
[1752709532143,8.9219,173.76,173.74,3.27411697]
[1752709532344,3.17,173.75,173.74,3.27411697]
[1752709532843,3.17,173.74,173.72,3.27411697]
[1752709535152,3.17,173.74,173.7,170.81]
[1752709535348,3.17,173.74,173.71,3.27411697]
[1752709535541,3.17,173.74,173.7,3.27411697]
[1752709535750,5.7532,173.73,173.7,3.27411697]
[1752709536050,3.17,173.72,173.7,3.27411697]
[1752709536952,3.17,173.74,173.7,4.72411697]
[1752709537245,3.17,173.74,173.73,1.45]
[1752709538650,3.17,173.75,173.72,4.72411697]
[1752709538848,3.17,173.75,173.72,3.27411697]
[1752709539147,8.9223,173.75,173.72,3.27411697]
[1752709539348,3.17,173.74,173.72,3.27411697]
[1752709539853,8.9226,173.74,173.72,3.27411697]
[1752709540048,3.17,173.73,173.72,3.27411697]
[1752709540352,8.9229,173.73,173.7,3.27411697]
[1752709540550,3.17,173.73,173.7,3.27411697]
[1752709541349,3.17,173.73,173.7,4.72411697]
[1752709541651,3.17,173.72,173.7,3.27411697]
[1752709542159,8.9233,173.72,173.69,116.06653113]
[1752709542351,3.17,173.71,173.69,119.3406481]
[1752709542856,8.9238,173.71,173.69,119.3406481]
[1752709543049,5.7538,173.71,173.69,119.3406481]
[1752709543248,3.17,173.7,173.69,119.3406481]
[1752709544853,8.9239,173.7,173.69,119.3406481]
[1752709545055,5.7539,173.7,173.69,119.3406481]
[1752709545251,8.9239,173.7,173.69,119.3406481]
[1752709545654,8.9239,173.7,173.66,169.24]
[1752709545852,12.89603551,173.73,173.68,3.27411697]
[1752709545853,8.9243,173.69,173.68,3.27411697]
[1752709546356,3.17,173.72,173.66,3.27411697]
[1752709546548,3.17,173.72,173.64,1.45]
[1752709546753,12.89603551,173.71,173.63,3.27411697]
[1752709546955,3.17,173.65,173.63,3.27411697]
[1752709547360,5.7558,173.65,173.62,169.38]
[1752709547559,3.17,173.64,173.62,172.65411697]
[1752709547861,3.17,173.63,173.62,172.65411697]
[1752709548357,3.17,173.63,173.62,169.38]
[1752709548558,3.17,173.63,173.62,172.65411697]
[1752709548856,3.17,173.63,173.62,169.38]
[1752709549159,3.17,173.63,173.62,3.27411697]
[1752709550162,16.17015248,173.71,173.62,4.72411697]
[1752709550460,12.89603551,173.75,173.65,7.2456]
[1752709550766,5.7543,173.69,173.68,3.27411697]
[1752709552360,8.9743,173.69,173.68,3.27411697]
[1752709553652,5.755,173.67,173.66,3.27411697]
[1752709553856,8.975,173.67,173.66,3.27411697]
[1752709560269,3.22,173.67,173.66,3.27411697]
[1752709560464,3.22,173.72,173.66,3.27411697]
[1752709560673,497.08,173.76,173.71,3.27411697]
[1752709560863,5.7533,173.72,173.71,3.27411697]
[1752709561357,3.22,173.72,173.71,4.77411697]
[1752709561866,3.22,173.72,173.71,3.27411697]
[1752709563065,8.9733,173.72,173.71,3.27411697]
[1752709563270,3.22,173.72,173.67,4.77411697]
[1752709563469,3.22,173.72,173.69,3.27411697]
[1752709563772,8.974,173.7,173.69,3.27411697]
[1752709563970,3.22,173.7,173.67,3.27411697]
[1752709564368,3.22,173.68,173.67,3.27411697]
[1752709566369,3.22,173.68,173.67,4.77411697]
[1752709567067,5.7543,173.69,173.67,4.77411697]
[1752709567270,8.9743,173.69,173.67,4.77411697]
[1752709567667,16.17015248,173.76,173.68,1.5]
[1752709567668,3.22,173.75,173.68,1.5]
[1752709567867,3.22,173.75,173.61,3.27411697]
[1752709567868,3.22,173.75,173.74,3.27411697]
[1752709568364,8.9723,173.75,173.74,3.27411697]
[1752709568764,3.22,173.75,173.7,1.5]
[1752709568965,5.7529,173.73,173.72,3.27411697]
[1752709569164,8.9729,173.73,173.72,3.27411697]
[1752709570673,3.22,173.73,173.72,3.27411697]
[1752709572080,8.9729,173.73,173.72,3.27411697]
[1752709572276,3.22,173.73,173.72,3.27411697]
[1752709574178,8.9729,173.73,173.72,3.27411697]
[1752709574481,3.22,173.72,173.71,3.27411697]
[1752709574670,8.9733,173.72,173.71,3.27411697]
[1752709575883,3.22,173.72,173.71,3.27411697]
[1752709576083,3.22,173.72,173.7,3.27411697]
[1752709577083,5.753,173.73,173.67,3.27411697]
[1752709577084,3.22,173.71,173.67,3.27411697]
[1752709578187,3.22,173.69,173.67,3.27411697]
[1752709578983,3.22,173.69,173.67,9.02891697]
[1752709579181,3.22,173.68,173.67,3.27411697]
[1752709579381,3.22,173.68,173.67,4.77411697]
[1752709580179,3.22,173.72,173.68,1.5]
[1752709580379,12.89603551,173.76,173.7,4.77411697]
[1752709580574,3.22,173.71,173.7,1.5]
[1752709580780,3.22,173.71,173.7,4.77411697]
[1752709581780,3.21,173.72,173.7,9.02801697]
[1752709581980,3.21,173.72,173.71,4.76411697]
[1752709582377,3.21,173.73,173.72,1.49]
[1752709582581,3.21,173.73,173.72,4.76411697]
[1752709583281,3.21,173.73,173.72,3.27411697]
[1752709583684,3.21,173.73,173.71,3.27411697]
[1752709583880,3.21,173.72,173.71,3.27411697]
[1752709587393,5.7533,173.72,173.62,405.66]
[1752709587584,3.21,173.71,173.68,3.27411697]
[1752709590488,3.21,173.71,173.68,9.02861697]
[1752709590890,3.21,173.71,173.68,3.27411697]
[1752709592388,3.21,173.7,173.68,3.27411697]
[1752709598091,5.754,173.7,173.68,3.27411697]
[1752709598298,3.21,173.69,173.64,3.27411697]
[1752709598691,3.21,173.69,173.63,1.49]
[1752709598692,3.21,173.69,173.62,3.27411697]
[1752709598996,12.89603551,173.67,173.62,3.27411697]
[1752709599192,5.7558,173.65,173.62,3.27411697]
[1752709599496,3.21,173.63,173.62,4.76411697]
[1752709600293,3.21,173.63,173.62,1.49]
[1752709600494,3.21,173.65,173.63,1.49]
[1752709600695,3.21,173.64,173.63,1.49]
[1752709603099,3.21,173.63,173.62,4.76411697]
[1752709603893,3.21,173.63,173.62,3.27411697]
[1752709605297,3.21,173.63,173.62,4.76411697]
[1752709606196,8.9657,173.65,173.62,4.76411697]
[1752709606398,5.7557,173.65,173.64,3.27411697]
[1752709606701,16.12004439,173.73,173.64,3.27411697]
[1752709606702,12.89603551,173.73,173.65,1.49]
[1752709606997,3.21,173.72,173.69,3.27411697]
[1752709607797,5.7536,173.71,173.69,3.27411697]
[1752709607997,3.21,173.7,173.69,3.27411697]
[1752709610098,3.21,173.7,173.69,4.77411697]
[1752709610905,3.21,173.73,173.7,1.5]
[1752709611106,3.21,173.73,173.71,3.27411697]
[1752709611899,3.09,173.74,173.71,3.27411697]
[1752709612104,3.09,173.74,173.66,1.5]
[1752709612105,3.09,173.74,173.69,3.27411697]
[1752709612304,5.7538,173.71,173.69,3.27411697]
[1752709612598,3.09,173.7,173.69,3.27411697]
[1752709614004,3.09,173.7,173.68,3.27411697]
[1752709615102,5.7543,173.69,173.68,3.27411697]
[1752709615307,8.8443,173.69,173.68,3.27411697]
[1752709615807,3.09,173.69,173.68,3.27411697]
[1752709618704,3.09,173.72,173.69,1.5]
[1752709618912,3.09,173.72,173.71,4.77411697]
[1752709620110,8.8426,173.74,173.71,4.77411697]
[1752709620311,5.7526,173.74,173.73,3.27411697]
[1752709620508,5.753,173.73,173.72,3.27411697]
[1752709620813,8.843,173.73,173.72,3.27411697]
[1752709621314,3.09,173.73,173.72,3.27411697]
[1752709626716,3.09,173.73,173.72,9.02741697]
[1752709627017,3.09,173.76,173.72,3.27411697]
[1752709627321,3.09,173.75,173.74,3.27411697]
[1752709628219,3.09,173.75,173.72,3.27411697]
[1752709628415,3.09,173.75,173.72,4.77411697]
[1752709628613,3.09,173.75,173.74,3.27411697]
[1752709629516,3.09,173.75,173.74,4.77411697]
[1752709630813,3.09,173.75,173.74,10.52671697]
[1752709631521,3.09,173.77,173.75,5.7522]
[1752709631822,5.7514,173.78,173.76,3.27411697]
[1752709632318,8.8416,173.77,173.76,3.27411697]
[1752709632718,3.09,173.76,173.74,3.27411697]
[1752709632918,3.09,173.75,173.74,3.27411697]
[1752709635318,3.09,173.75,173.74,4.77411697]
[1752709635719,3.09,173.75,173.74,10.52671697]
[1752709636220,3.09,173.75,173.65,237.0]
[1752709636415,3.09,173.75,173.71,3.27411697]
[1752709636616,3.09,173.75,173.73,4.77411697]
[1752709636818,3.09,173.75,173.74,1.5]
[1752709637217,12.89603551,173.81,173.74,1.5]
[1752709637218,5.7515,173.78,173.74,7.2526]
[1752709637417,3.09,173.77,173.76,3.27411697]
[1752709639022,8.8416,173.77,173.76,3.27411697]
[1752709639222,3.09,173.77,173.76,3.27411697]
[1752709641220,3.26,173.76,173.73,3.27411697]
[1752709641814,3.26,173.75,173.73,3.27411697]
[1752709643528,3.26,173.73,173.72,1.49]
[1752709643727,3.26,173.73,173.72,4.76411697]
[1752709644325,3.26,173.73,173.72,10.51741697]
[1752709645835,3.26,173.73,173.72,4.76411697]
[1752709646024,3.26,173.73,173.72,3.27411697]
[1752709646926,9.0129,173.73,173.72,3.27411697]
[1752709647126,16.15603551,173.77,173.7,3.27411697]
[1752709647327,3.26,173.76,173.7,3.27411697]
[1752709647626,3.26,173.72,173.7,3.27411697]
[1752709650328,3.26,173.73,173.7,10.51791697]
[1752709650528,3.26,173.73,173.7,4.76411697]
[1752709650729,3.26,173.72,173.7,4.76411697]
[1752709650931,3.26,173.71,173.7,4.76411697]
[1752709651633,3.26,173.71,173.7,1.49]
[1752709651935,3.26,173.7,173.69,4.76411697]
[1752709652123,3.26,173.7,173.69,10.51831697]
[1752709652433,3.26,173.7,173.69,4.76411697]
[1752709653232,3.26,173.7,173.69,3.27411697]
[1752709653834,3.26,173.7,173.69,4.76411697]
[1752709656628,3.26,173.7,173.63,237.0]
[1752709656834,3.26,173.7,173.67,3.27411697]
[1752709657134,9.0146,173.68,173.67,3.27411697]
[1752709657534,3.26,173.68,173.67,3.27411697]
[1752709661731,3.26,173.68,173.63,174.2561]
[1752709661929,3.26,173.68,173.66,3.27411697]
[1752709662134,12.89603551,173.72,173.65,1.49]
[1752709662135,3.26,173.67,173.65,1.49]
[1752709662335,3.26,173.67,173.65,3.27411697]
[1752709662844,9.0152,173.66,173.65,3.27411697]
[1752709668647,3.26,173.65,173.63,173.26411697]
[1752709668858,3.26,173.65,173.63,168.5]
[1752709669043,12.89603551,173.69,173.63,169.99]
[1752709669352,3.26,173.64,173.63,1.49]
[1752709669550,3.26,173.64,173.63,4.76411697]
[1752709670147,3.26,173.64,173.63,1.49]
[1752709670351,3.26,173.64,173.63,4.76411697]
[1752709672148,16.23603551,173.72,173.64,1.5]
[1752709672350,3.34,173.72,173.71,3.27411697]
[1752709673149,9.0932,173.72,173.71,3.27411697]
[1752709675454,3.34,173.72,173.71,3.27411697]
[1752709676351,9.0932,173.72,173.71,3.27411697]
[1752709677357,3.34,173.72,173.71,3.27411697]
[1752709677863,3.34,173.72,173.71,4.76411697]
[1752709678955,3.34,173.72,173.71,3.27411697]
[1752709679459,3.34,173.72,173.71,4.76411697]
[1752709680259,3.34,173.72,173.71,3.27411697]
[1752709680465,9.0932,173.72,173.71,3.27411697]
[1752709680758,9.0932,173.72,173.71,4.76411697]
[1752709682857,9.0936,173.71,173.69,1.49]
[1752709683159,12.89603551,173.78,173.7,4.76411697]
[1752709683463,9.0926,173.74,173.73,3.27411697]
[1752709686369,3.34,173.77,173.74,1.49]
[1752709686669,3.34,173.77,173.75,3.27411697]
[1752709686863,5.7521,173.76,173.75,3.27411697]
[1752709687057,9.0921,173.76,173.75,3.27411697]
[1752709687367,3.34,173.76,173.75,3.27411697]
[1752709689761,9.0919,173.76,173.75,3.27411697]
[1752709689959,3.34,173.76,173.75,3.27411697]
[1752709691068,3.34,173.76,173.75,4.76411697]
[1752709691364,3.34,173.76,173.75,1.49]
[1752709691561,3.34,173.76,173.75,3.27411697]
[1752709692061,3.34,173.76,173.75,4.76411697]
[1752709692871,3.34,173.76,173.73,1.49]
[1752709693066,3.34,173.76,173.75,3.27411697]
[1752709693369,3.34,173.75,173.74,0.03631127]
[1752709693667,3.34,173.75,173.74,3.31042824]
[1752709694366,3.34,173.75,173.74,4.80042824]
[1752709696062,0.04371472,173.77,173.75,1.49]
[1752709696266,3.38371472,173.77,173.76,4.76411697]
[1752709697765,0.04371472,173.77,173.76,4.76411697]
[1752709697968,0.04371472,173.77,173.76,10.51601697]
[1752709698573,3.38371472,173.77,173.76,4.76411697]
[1752709700273,3.38371472,173.77,173.76,3.27411697]
[1752709700965,3.38371472,173.77,173.75,3.27411697]
[1752709701476,9.13541472,173.77,173.75,3.27411697]
[1752709701777,3.35,173.76,173.75,3.27411697]
[1752709709685,3.35,173.76,173.75,4.77411697]
[1752709710284,0.04371472,173.77,173.75,3.27411697]
[1752709710490,0.04371472,173.77,173.76,1.5]
[1752709710682,12.89603551,173.86,173.76,1.5]
[1752709710885,12.89603551,173.87,173.81,3.27411697]
[1752709711585,12.89603551,173.86,173.8,3.27411697]
[1752709711780,12.89603551,173.85,173.77,3.22]
[1752709711982,12.89603551,173.85,173.76,3.22]
[1752709712181,12.89603551,173.85,173.77,3.27411697]
[1752709712791,3.35,173.79,173.77,6.49411697]
[1752709714280,3.35,173.79,173.77,3.27411697]
[1752709714688,3.35,173.78,173.77,3.27411697]
[1752709715190,3.35,173.77,173.75,3.27411697]
[1752709715388,3.35,173.77,173.75,6.49411697]
[1752709718697,3.35,173.77,173.76,3.22]
[1752709719700,3.35,173.77,173.76,6.49411697]
[1752709720295,3.35,173.77,173.76,3.27411697]
[1752709720796,9.1016,173.77,173.76,3.27411697]
[1752709721296,3.35,173.77,173.76,3.27411697]
[1752709721494,3.35,173.77,173.74,3.27411697]
[1752709721893,3.35,173.77,173.74,6.49411697]
[1752709722097,5.7518,173.77,173.74,6.49411697]
[1752709722301,3.35,173.76,173.75,3.22]
[1752709722804,3.35,173.76,173.74,3.27411697]
[1752709723102,3.35,173.75,173.74,9.02651697]
[1752709723297,16.24603551,173.8,173.74,3.27411697]
[1752709723503,3.35,173.8,173.79,3.27411697]
[1752709723698,3.35,173.8,173.79,4.10056951]
[1752709725003,9.1006,173.8,173.79,0.88056951]
[1752709725304,3.35,173.8,173.79,0.88056951]
[1752709726400,3.35,173.8,173.77,3.22]
[1752709726606,3.35,173.8,173.78,3.27411697]
[1752709727603,3.35,173.79,173.78,6.49411697]
[1752709728404,3.35,173.79,173.78,3.27411697]
[1752709730610,3.35,173.81,173.76,3.27411697]
[1752709730909,3.35,173.79,173.76,3.27411697]
[1752709731501,5.7516,173.78,173.76,3.27411697]
[1752709731805,3.39,173.77,173.76,3.27411697]
[1752709733407,3.39,173.77,173.76,6.36411697]
[1752709735913,3.39,173.77,173.75,3.09]
[1752709736217,9.1417,173.77,173.75,3.09]
[1752709736421,3.39,173.76,173.75,3.09]
[1752709736816,3.39,173.78,173.75,3.09]
[1752709737017,3.39,173.78,173.77,6.36411697]
[1752709738315,18.64633551,173.81,173.77,12.11571697]
[1752709738519,3.39,173.8,173.79,6.36411697]
[1752709738916,9.1406,173.8,173.79,6.36411697]
[1752709739118,9.1406,173.8,173.79,3.27411697]
[1752709741424,3.39,173.8,173.79,3.27411697]
[1752709741625,3.39,173.8,173.79,6.36411697]
[1752709742826,3.39,173.8,173.79,3.09]
[1752709744033,3.39,173.8,173.78,6.36411697]
[1752709744220,3.39,173.79,173.78,6.36411697]
[1752709747628,3.39,173.79,173.78,3.27411697]
[1752709748529,3.39,173.79,173.77,6.36411697]
[1752709748827,3.39,173.79,173.76,3.27411697]
[1752709749026,3.39,173.78,173.74,6.36411697]
[1752709749425,9.1414,173.78,173.74,12.11661697]
[1752709749620,3.39,173.77,173.74,12.11661697]
[1752709750024,3.39,173.77,173.75,3.09]
[1752709750225,3.39,173.77,173.75,8.8422]
[1752709750532,3.39,173.77,173.75,3.09]
[1752709751832,3.39,173.76,173.74,3.27411697]
[1752709752330,3.39,173.76,173.74,9.02661697]
[1752709752530,3.39,173.76,173.75,3.09]
[1752709753329,3.39,173.76,173.75,8.8423]
[1752709753832,3.39,173.76,173.75,3.09]
[1752709755236,3.39,173.76,173.75,8.8423]
[1752709758240,0.04238018,173.77,173.76,8.8419]
[1752709758538,0.04238018,173.77,173.76,12.11601697]
[1752709762640,3.40238018,173.77,173.76,12.11601697]
[1752709763442,3.40238018,173.77,173.76,3.27411697]
[1752709764945,3.40238018,173.77,173.75,8.9122]
[1752709765647,3.40238018,173.77,173.75,5.7522]
[1752709766445,3.40238018,173.77,173.75,8.9122]
[1752709766642,3.36,173.76,173.74,3.31603019]
[1752709767040,3.36,173.76,173.74,6.47603019]
[1752709767246,0.04238018,173.77,173.74,3.31603019]
[1752709767445,3.36,173.76,173.75,3.16]
[1752709768145,3.36,173.76,173.75,8.9123]
[1752709769544,3.36,173.76,173.75,3.16]
[1752709769748,3.36,173.76,173.74,6.47603019]
[1752709769950,3.36,173.76,173.74,3.31603019]
[1752709770152,3.36,173.76,173.74,0.04191322]
[1752709770950,9.1123,173.75,173.74,0.04191322]
[1752709774151,3.36,173.71,173.7,97.62074644]
[1752709775151,3.36,173.71,173.68,3.27411697]
[1752709776255,3.36,173.69,173.68,3.27411697]
[1752709776654,3.36,173.69,173.67,3.16]
[1752709776852,3.36,173.69,173.66,3.27411697]
[1752709777152,3.36,173.69,173.66,6.43411697]
[1752709777753,3.36,173.68,173.66,6.43411697]
[1752709777954,3.36,173.68,173.65,171.32]
[1752709778147,3.36,173.68,173.66,3.16]
[1752709778350,3.36,173.71,173.66,3.16]
[1752709778551,3.36,173.71,173.67,3.16]
[1752709778751,3.36,173.68,173.67,3.16]
[1752709784361,3.36,173.68,173.66,6.43411697]
[1752709784662,0.03705613,173.69,173.65,168.16]
[1752709784861,3.36,173.68,173.64,3.16]
[1752709785057,3.36,173.68,173.63,100.90093493]
[1752709785354,3.36,173.65,173.63,100.90093493]
[1752709785955,5.7556,173.65,173.62,3.16]
[1752709786160,3.36,173.64,173.62,3.16]
[1752709786358,3.27411697,173.69,173.61,168.18]
[1752709786558,5.7557,173.65,173.62,3.16]
[1752709786764,3.36,173.64,173.63,3.16]
[1752709786960,3.36,173.64,173.62,3.16]
[1752709787164,5.7987399,173.65,173.62,3.16]
[1752709787364,3.36,173.63,173.62,3.16]
[1752709787968,0.0430399,173.65,173.63,5.7562]
[1752709788166,3.4030399,173.65,173.64,3.16]
[1752709788968,3.4030399,173.65,173.62,3.16]
[1752709789271,3.4030399,173.65,173.61,6.43411697]
[1752709789771,3.36,173.63,173.59,6.43411697]
[1752709789970,3.36,173.63,173.6,3.16]
[1752709790267,9.1163,173.63,173.59,9.03141697]
[1752709790470,3.36,173.62,173.61,3.16]
[1752709791465,3.36,173.62,173.59,3.27411697]
[1752709791664,3.34,173.61,173.59,3.27411697]
[1752709791874,3.34,173.61,173.59,3.31]
[1752709792077,3.34,173.61,173.58,168.2]
[1752709792472,3.34,173.61,173.57,6.58411697]
[1752709792674,5.7575,173.6,173.57,6.58411697]
[1752709793070,3.34,173.59,173.57,6.58411697]
[1752709794171,5.79376757,173.61,173.57,3.27411697]
[1752709794375,3.34,173.6,173.58,3.31]
[1752709795470,3.34,173.59,173.57,6.58411697]
[1752709796975,3.34,173.58,173.57,3.31]
[1752709797183,3.34,173.58,173.56,3.31]
[1752709798178,3.34,173.58,173.57,3.31]
[1752709799072,0.03676757,173.61,173.57,3.31]
[1752709799276,3.34,173.6,173.58,3.31]
[1752709800768,3.34,173.6,173.58,9.0679]
[1752709800969,3.37676757,173.61,173.6,3.31]